[Event "ONJK-B 2019"]
[Site "Borne"]
[Date "2019.08.06"]
[Round "2.6"]
[White "Maas, Tristan"]
[Black "Van Weerden, Jur"]
[Result "0-1"]
[ECO "C01"]
[WhiteElo "1467"]
[BlackElo "1676"]
[Annotator "NA"]
[PlyCount "50"]
[EventDate "2019.08.05"]
[EventType "swiss"]
[EventCountry "NED"]
[SourceTitle "playchess.com"]
[Source "ChessBase"]
[SourceQuality "1"]
[TimeControl "5400+30"]

1. e4 {[%emt 0:00:00]} e6 {[%emt 0:00:00]} 2. d4 {[%emt 0:02:21]} Ne7 {[%emt 0:00:04]} 3. Nc3 {[%emt 0:02:25]} g6 {[%emt 0:00:14]} 4. Bg5 {[%emt 0:08:37]} Bg7 {[%emt 0:00:25]} 5. e5 {[%emt 0:00:14]} O-O {[%emt 0:00:19]} 6. Nf3 {[%emt 0:00:20]} f6 {[%emt 0:01:49]} 7. exf6 {[%emt 0:01:03]} Bxf6 {[%emt 0:00:11]} 8. Qd2 {[%emt 0:01:09]} Nf5 {[%emt 0:00:39]} 9. Bxf6 {[%emt 0:08:10]} Qxf6 {[%emt 0:03:05]} 10. O-O-O {[%emt 0:01:15]} d5 {[%emt 0:01:27]} 11. h4 {[%emt 0:10:00]} Ng7 {[%emt 0:01:19]} 12. Be2 {[%emt 0:01:40]} Nd7 {[%emt 0:01:58]} 13. Ng5 {[%emt 0:01:32]} Qxf2 {[%emt 0:05:03]} 14. h5 {[%emt 0:01:41]} gxh5 {[%emt 0:02:18]} 15. Bxh5 {[%emt 0:34:31]} Qxd2+ {[%emt 0:02:33]} 16. Rxd2 {[%emt 0:00:20]} Nf6 {[%emt 0:01:17]} 17. Bd1 {[%emt 0:01:48]} Nf5 {[%emt 0:00:50]} 18. Nb5 {[%emt 0:01:51]} Ng3 {[%emt 0:03:03]} 19. Rh3 {[%emt 0:02:57]} Nge4 {[%emt 0:00:17]} 20. Nxe4 {[%emt 0:01:53]} Nxe4 {[%emt 0:00:08]} 21. Nxc7 {[%emt 0:00:53]} Rb8 {[%emt 0:01:45]} 22. Re2 {[%emt 0:03:49]} Bd7 {[%emt 0:00:45]} 23. Rh5 {[%emt 0:09:49]} Rbc8 {[%emt 0:01:15]} 24. Nxd5 {[%emt 0:01:40]} exd5 {[%emt 0:00:15]} 25. Rxd5 {[%emt 0:00:07]} Bc6 {[%emt 0:00:16]} 0-1

[Event "ONJK-B 2019"]
[Site "Borne"]
[Date "2019.08.06"]
[Round "2.7"]
[White "De Putter, Nina"]
[Black "Klein, Lucas"]
[Result "1/2-1/2"]
[ECO "B56"]
[WhiteElo "1631"]
[BlackElo "1481"]
[Annotator "NA"]
[PlyCount "60"]
[EventDate "2019.08.05"]
[EventType "swiss"]
[EventCountry "NED"]
[SourceTitle "playchess.com"]
[Source "ChessBase"]
[SourceQuality "1"]
[TimeControl "5400+30"]

1. e4 {[%emt 0:00:00]} c5 {[%emt 0:00:00]} 2. Nf3 {[%emt 0:00:00]} Nf6 {[%emt 0:00:00]} 3. Nc3 {[%emt 0:05:10]} Nc6 {[%emt 0:00:13]} 4. d4 {[%emt 0:10:59]} cxd4 {[%emt 0:00:25]} 5. Nxd4 {[%emt 0:00:08]} d6 {[%emt 0:00:31]} 6. f3 {[%emt 0:04:45]} e5 {[%emt 0:00:57]} 7. Nb3 {[%emt 0:03:21]} Be7 {[%emt 0:02:04]} 8. Bc4 {[%emt 0:10:11]} O-O {[%emt 0:04:05]} 9. Be3 {[%emt 0:13:31]} a5 {[%emt 0:01:19]} 10. a4 {[%emt 0:00:48]} Nb4 {[%emt 0:06:05]} 11. g4 {[%emt 0:10:09]} Be6 {[%emt 0:06:01]} 12. Bxe6 {[%emt 0:06:38]} fxe6 {[%emt 0:00:18]} 13. Qe2 {[%emt 0:04:15]} d5 {[%emt 0:12:16]} 14. exd5 {[%emt 0:04:23]} exd5 {[%emt 0:01:20]} 15. O-O-O {[%emt 0:00:53]} Rc8 {[%emt 0:13:28]} 16. Qb5 {[%emt 0:06:54]} Qc7 {[%emt 0:05:59]} 17. Bb6 {[%emt 0:07:20]} Qc4 {[%emt 0:03:42]} 18. Qxc4 {[%emt 0:00:32]} Rc7 {[%emt 0:00:20]} 19. Qc5 Rxc5 {[%emt 0:00:31]} 20. Bxa5 {[%emt 0:01:27]} Rc4 {[%emt 0:02:10]} 21. Bxb4 {[%emt 0:01:02]} d4 {[%emt 0:00:32]} 22. Na2 {[%emt 0:01:20]} Bxb4 {[%emt 0:03:20]} 23. Rd3 {[%emt 0:03:10]} Nd5 {[%emt 0:02:23]} 24. Na1 {[%emt 0:00:21]} Rfc8 {[%emt 0:03:14]} 25. Kb1 {[%emt 0:01:47]} Ba5 {[%emt 0:07:49]} 26. Rb3 {[%emt 0:00:58]} Nf4 {[%emt 0:04:08]} 27. h4 {[%emt 0:00:55]} R8c7 {[%emt 0:01:09]} 28. Rh2 {[%emt 0:00:37]} Nd5 {[%emt 0:01:05]} 29. Nc1 {[%emt 0:01:03]} Rf7 {[%emt 0:01:29]} 30. Ne2 {[%emt 0:00:02]} Nf4 {[%emt 0:02:26]} 1/2-1/2

[Event "ONJK-B 2019"]
[Site "Borne"]
[Date "2019.08.06"]
[Round "2.8"]
[White "Schoonhoven, Mark"]
[Black "Molanus, Lennart"]
[Result "0-1"]
[ECO "B70"]
[WhiteElo "1275"]
[BlackElo "1619"]
[Annotator "NA"]
[PlyCount "78"]
[EventDate "2019.08.05"]
[EventType "swiss"]
[EventCountry "NED"]
[SourceTitle "playchess.com"]
[Source "ChessBase"]
[SourceQuality "1"]
[TimeControl "5400+30"]

1. e4 {[%emt 0:00:00]} c5 {[%emt 0:00:00]} 2. Nf3 {[%emt 0:00:00]} d6 {[%emt 0:00:00]} 3. d4 {[%emt 0:00:00]} cxd4 {[%emt 0:00:00]} 4. Nxd4 {[%emt 0:00:00]} Nf6 {[%emt 0:00:00]} 5. Nc3 {[%emt 0:00:00]} g6 {[%emt 0:00:01]} 6. Bg5 {[%emt 0:00:09]} Bg7 {[%emt 0:00:32]} 7. Bd3 {[%emt 0:00:53]} h6 {[%emt 0:01:32]} 8. Bh4 {[%emt 0:01:13]} O-O {[%emt 0:00:33]} 9. Qd2 {[%emt 0:01:00]} Nc6 {[%emt 0:00:48]} 10. Nf3 {[%emt 0:04:24]} Kh7 {[%emt 0:04:42]} 11. O-O-O {[%emt 0:01:42]} Be6 {[%emt 0:01:18]} 12. h3 {[%emt 0:03:49]} Qa5 {[%emt 0:15:10]} 13. a3 {[%emt 0:03:13]} a6 {[%emt 0:09:32]} 14. g4 {[%emt 0:02:20]} b5 {[%emt 0:07:02]} 15. g5 {[%emt 0:20:39]} Nd7 {[%emt 0:06:34]} 16. Nb1 {[%emt 0:11:56]} b4 {[%emt 0:03:23]} 17. gxh6 {[%emt 0:00:40]} Bxb2+ {[%emt 0:07:02]} 18. Kxb2 {[%emt 0:02:56]} bxa3+ {[%emt 0:00:17]} 19. Ka1 {[%emt 0:00:22]} a2 {[%emt 0:00:36]} 20. Ng5+ {[%emt 0:05:31]} Kh8 {[%emt 0:02:20]} 21. Qxa5 {[%emt 0:00:29]} axb1=Q+ {[%emt 0:00:09]} 22. Rxb1 {[%emt 0:00:53]} Nxa5 {[%emt 0:00:05]} 23. Nxe6 {[%emt 0:03:08]} fxe6 {[%emt 0:00:09]} 24. Rhf1 {[%emt 0:08:05]} Rf3 {[%emt 0:13:32]} 25. Bxe7 {[%emt 0:06:15]} Ne5 {[%emt 0:05:53]} 26. Rbd1 {[%emt 0:05:36]} d5 {[%emt 0:06:57]} 27. exd5 {[%emt 0:04:02]} exd5 {[%emt 0:00:19]} 28. Bb4 {[%emt 0:01:19]} Nac6 {[%emt 0:01:39]} 29. Ba3 {[%emt 0:03:21]} Rxh3 {[%emt 0:01:19]} 30. Rh1 {[%emt 0:00:59]} Rf3 {[%emt 0:00:14]} 31. Bc5 {[%emt 0:06:19]} d4 {[%emt 0:01:38]} 32. Be4 {[%emt 0:00:34]} Rf4 {[%emt 0:01:51]} 33. f3 {[%emt 0:00:39]} Rc8 {[%emt 0:00:51]} 34. Bxc6 {[%emt 0:01:53]} Nxc6 {[%emt 0:00:17]} 35. Rh3 {[%emt 0:00:41]} Rd8 {[%emt 0:01:33]} 36. Rg3 {[%emt 0:01:01]} Kh7 {[%emt 0:01:12]} 37. Rh3 {[%emt 0:00:34]} Ne5 {[%emt 0:00:47]} 38. Rf1 {[%emt 0:00:28]} Rf5 {[%emt 0:02:24]} 39. Kb2 {[%emt 0:00:20]} Nc4+ {[%emt 0:00:16]} 0-1

[Event "ONJK-B 2019"]
[Site "Borne"]
[Date "2019.08.06"]
[Round "2.9"]
[White "Ekker, Laurens"]
[Black "Winter, Ynse"]
[Result "1-0"]
[ECO "C01"]
[WhiteElo "1614"]
[BlackElo "1021"]
[Annotator "NA"]
[PlyCount "43"]
[EventDate "2019.08.05"]
[EventType "swiss"]
[EventCountry "NED"]
[SourceTitle "playchess.com"]
[Source "ChessBase"]
[SourceQuality "1"]
[TimeControl "5400+30"]

1. e4 {[%emt 0:00:00]} e6 {[%emt 0:00:00]} 2. d4 {[%emt 0:00:00]} d5 {[%emt 0:00:00]} 3. exd5 {[%emt 0:00:00]} exd5 {[%emt 0:00:00]} 4. c4 {[%emt 0:00:00]} c6 {[%emt 0:00:17]} 5. Nc3 {[%emt 0:00:00]} Nf6 {[%emt 0:00:33]} 6. Nf3 {[%emt 0:00:28]} Bg4 {[%emt 0:03:37]} 7. Be3 {[%emt 0:02:35]} Bd6 {[%emt 0:05:19]} 8. h3 {[%emt 0:02:55]} Bh5 {[%emt 0:01:09]} 9. cxd5 {[%emt 0:06:45]} Nxd5 {[%emt 0:00:57]} 10. Nxd5 {[%emt 0:01:11]} cxd5 {[%emt 0:00:15]} 11. Be2 {[%emt 0:01:07]} Nd7 {[%emt 0:03:51]} 12. Qb3 {[%emt 0:05:13]} Qb6 {[%emt 0:04:22]} 13. Qxd5 {[%emt 0:22:05]} Qxb2 {[%emt 0:00:17]} 14. O-O {[%emt 0:00:33]} Qxe2 {[%emt 0:03:43]} 15. Rfe1 {[%emt 0:14:16]} Qa6 {[%emt 0:16:30]} 16. Bf4+ {[%emt 0:06:01]} Kd8 {[%emt 0:01:02]} 17. Bxd6 {[%emt 0:03:07]} Bxf3 {[%emt 0:06:05]} 18. Be7+ {[%emt 0:00:31]} Ke8 {[%emt 0:01:58]} 19. Qxf3 {[%emt 0:01:26]} Qc6 {[%emt 0:13:40]} 20. Qg3 {[%emt 0:06:19]} Qg6 {[%emt 0:01:06]} 21. Qc7 {[%emt 0:01:02]} Nb6 {[%emt 0:01:18]} 22. Bd6+ {[%emt 0:00:37]} 1-0

[Event "ONJK-B 2019"]
[Site "Borne"]
[Date "2019.08.06"]
[Round "2.10"]
[White "Neirynck, Arthur"]
[Black "Albertus, Bram"]
[Result "0-1"]
[ECO "B21"]
[WhiteElo "1514"]
[BlackElo "1841"]
[Annotator "NA"]
[PlyCount "60"]
[EventDate "2019.08.05"]
[EventType "swiss"]
[EventCountry "NED"]
[SourceTitle "playchess.com"]
[Source "ChessBase"]
[SourceQuality "1"]
[TimeControl "5400+30"]

1. e4 {[%emt 0:00:00]} c5 {[%emt 0:00:00]} 2. Nc3 {[%emt 0:00:22]} e6 {[%emt 0:00:00]} 3. f4 {[%emt 0:00:12]} Nc6 {[%emt 0:00:10]} 4. Nf3 {[%emt 0:00:08]} g6 {[%emt 0:03:22]} 5. Bb5 {[%emt 0:00:46]} Nge7 {[%emt 0:01:01]} 6. O-O {[%emt 0:01:14]} Bg7 {[%emt 0:01:08]} 7. Qe1 {[%emt 0:04:05]} a6 {[%emt 0:00:57]} 8. Bxc6 {[%emt 0:00:30]} Nxc6 {[%emt 0:00:23]} 9. d3 {[%emt 0:03:27]} O-O {[%emt 0:07:35]} 10. Qg3 {[%emt 0:04:57]} d5 {[%emt 0:07:07]} 11. h4 {[%emt 0:07:02]} h5 $15 {[%emt 0:16:17]} 12. Qh3 {[%emt 0:07:06]} Nd4 {[%emt 0:14:51]} 13. Rf2 {[%emt 0:05:20]} b5 {[%emt 0:09:04]} 14. g4 {[%emt 0:04:30]} Nxf3+ {[%emt 0:03:16]} 15. Rxf3 {[%emt 0:17:44]} hxg4 {[%emt 0:01:44]} 16. Qxg4 {[%emt 0:01:17]} Bxc3 {[%emt 0:00:41]} 17. bxc3 {[%emt 0:01:22]} dxe4 {[%emt 0:00:55]} 18. Rg3 {[%emt 0:02:44]} exd3 {[%emt 0:03:10]} 19. cxd3 {[%emt 0:01:11]} Qf6 {[%emt 0:08:28]} 20. Rb1 {[%emt 0:11:48]} e5 {[%emt 0:07:52]} 21. fxe5 {[%emt 0:07:18]} Qxe5 {[%emt 0:00:24]} 22. Bf4 {[%emt 0:09:14]} Qd5 {[%emt 0:06:14]} 23. Qf3 {[%emt 0:01:56]} Qxf3 {[%emt 0:01:10]} 24. Rxf3 {[%emt 0:00:03]} Bf5 {[%emt 0:00:41]} 25. Rd1 {[%emt 0:01:08]} Bg4 {[%emt 0:00:49]} 26. Kf2 {[%emt 0:00:45]} Rad8 {[%emt 0:00:55]} 27. Rd2 {[%emt 0:01:38]} Bxf3 {[%emt 0:00:11]} 28. Kxf3 {[%emt 0:00:02]} Rd5 {[%emt 0:00:21]} 29. d4 {[%emt 0:01:53]} Rfd8 {[%emt 0:00:35]} 30. Be5 {[%emt 0:01:17]} Rxe5 {[%emt 0:00:30]} 0-1

[Event "ONJK-B 2019"]
[Site "Borne"]
[Date "2019.08.06"]
[Round "2.11"]
[White "Van Hille, Clara"]
[Black "Kroon, Lindert"]
[Result "1-0"]
[ECO "C46"]
[WhiteElo "1391"]
[BlackElo "1076"]
[Annotator "NA"]
[PlyCount "97"]
[EventDate "2019.08.05"]
[EventType "swiss"]
[EventCountry "NED"]
[SourceTitle "playchess.com"]
[Source "ChessBase"]
[SourceQuality "1"]
[TimeControl "5400+30"]

1. e4 {[%emt 0:00:00]} e5 {[%emt 0:00:00]} 2. Nf3 {[%emt 0:00:00]} Nc6 {[%emt 0:00:00]} 3. Nc3 {[%emt 0:00:00]} Bb4 {[%emt 0:00:00]} 4. Nd5 {[%emt 0:00:00]} Nf6 {[%emt 0:00:46]} 5. Nxb4 {[%emt 0:02:25]} Nxb4 {[%emt 0:00:10]} 6. c3 {[%emt 0:00:15]} Nc6 {[%emt 0:00:15]} 7. d3 {[%emt 0:00:55]} h6 {[%emt 0:00:16]} 8. g3 {[%emt 0:00:52]} d5 {[%emt 0:00:31]} 9. Qe2 {[%emt 0:01:27]} dxe4 {[%emt 0:00:31]} 10. dxe4 {[%emt 0:00:12]} O-O {[%emt 0:00:10]} 11. Bg2 {[%emt 0:00:20]} Bg4 {[%emt 0:00:15]} 12. O-O {[%emt 0:00:35]} Ne7 {[%emt 0:02:51]} 13. h3 {[%emt 0:03:07]} Bd7 {[%emt 0:00:16]} 14. Nxe5 {[%emt 0:00:24]} Be6 {[%emt 0:00:44]} 15. Be3 {[%emt 0:05:36]} a6 {[%emt 0:01:04]} 16. Rad1 {[%emt 0:02:55]} Qc8 {[%emt 0:00:53]} 17. b3 {[%emt 0:01:19]} Bxh3 {[%emt 0:02:38]} 18. Bc5 {[%emt 0:12:12]} Bxg2 {[%emt 0:00:34]} 19. Kxg2 {[%emt 0:00:42]} Re8 {[%emt 0:01:54]} 20. Qc4 {[%emt 0:05:28]} Qe6 {[%emt 0:02:32]} 21. Qxe6 {[%emt 0:03:44]} fxe6 {[%emt 0:00:10]} 22. f3 {[%emt 0:01:02]} b6 {[%emt 0:01:11]} 23. Be3 {[%emt 0:02:15]} Rad8 {[%emt 0:02:13]} 24. c4 {[%emt 0:02:50]} g5 {[%emt 0:02:59]} 25. Rh1 {[%emt 0:02:07]} Nh7 {[%emt 0:02:21]} 26. Rxd8 {[%emt 0:01:44]} Rxd8 {[%emt 0:00:58]} 27. Rxh6 {[%emt 0:00:52]} Nf8 {[%emt 0:00:31]} 28. Bxg5 {[%emt 0:01:18]} Kg7 {[%emt 0:01:12]} 29. Rh1 {[%emt 0:01:48]} Re8 {[%emt 0:01:17]} 30. Bxe7 {[%emt 0:02:50]} Rxe7 {[%emt 0:00:11]} 31. Rd1 {[%emt 0:00:09]} Kf6 {[%emt 0:00:17]} 32. f4 {[%emt 0:00:28]} Nh7 {[%emt 0:00:38]} 33. Rd7 {[%emt 0:03:58]} c5 {[%emt 0:00:53]} 34. Rxe7 {[%emt 0:00:35]} Kxe7 {[%emt 0:00:05]} 35. Kh3 {[%emt 0:00:16]} Kf6 {[%emt 0:00:13]} 36. Nd7+ {[%emt 0:00:21]} Ke7 {[%emt 0:00:15]} 37. Nxb6 {[%emt 0:00:06]} Kd6 {[%emt 0:00:21]} 38. Kh4 {[%emt 0:00:32]} e5 {[%emt 0:00:15]} 39. f5 {[%emt 0:00:15]} Nf6 {[%emt 0:00:09]} 40. Nd5 {[%emt 0:00:52]} Nxe4 {[%emt 0:00:35]} 41. g4 {[%emt 0:00:27]} Kd7 {[%emt 0:00:21]} 42. g5 {[%emt 0:00:10]} a5 {[%emt 0:00:07]} 43. g6 {[%emt 0:01:56]} Ke8 {[%emt 0:00:05]} 44. f6 {[%emt 0:00:25]} Kf8 {[%emt 0:00:05]} 45. Kg4 {[%emt 0:00:51]} Nf2+ {[%emt 0:00:26]} 46. Kf5 {[%emt 0:00:32]} e4 {[%emt 0:00:10]} 47. Kf4 {[%emt 0:00:54]} Kg8 {[%emt 0:00:59]} 48. Ke3 {[%emt 0:01:47]} Ng4+ {[%emt 0:01:03]} 49. Kxe4 {[%emt 0:00:29]} 1-0

[Event "ONJK-B 2019"]
[Site "Borne"]
[Date "2019.08.06"]
[Round "2.12"]
[White "Pol, Florian"]
[Black "Mainka, Irmin"]
[Result "1/2-1/2"]
[ECO "A25"]
[WhiteElo "1334"]
[BlackElo "1611"]
[Annotator "NA"]
[PlyCount "151"]
[EventDate "2019.08.05"]
[EventType "swiss"]
[EventCountry "NED"]
[SourceTitle "playchess.com"]
[Source "ChessBase"]
[SourceQuality "1"]
[TimeControl "5400+30"]

1. c4 {[%emt 0:00:00]} e5 {[%emt 0:00:00]} 2. Nc3 {[%emt 0:00:00]} Nf6 {[%emt 0:00:00]} 3. g3 {[%emt 0:00:00]} Nc6 {[%emt 0:01:17]} 4. Bg2 {[%emt 0:00:05]} d6 {[%emt 0:00:11]} 5. d3 {[%emt 0:00:18]} Be7 {[%emt 0:00:09]} 6. Nf3 {[%emt 0:00:43]} Bd7 {[%emt 0:00:15]} 7. O-O {[%emt 0:00:16]} Rb8 {[%emt 0:00:08]} 8. a4 {[%emt 0:00:39]} O-O {[%emt 0:00:23]} 9. Bd2 {[%emt 0:00:33]} h6 {[%emt 0:02:31]} 10. b3 {[%emt 0:01:47]} Ng4 {[%emt 0:00:33]} 11. h3 {[%emt 0:00:45]} Nf6 {[%emt 0:00:08]} 12. Kh2 {[%emt 0:01:05]} Nh7 {[%emt 0:01:13]} 13. Qc1 {[%emt 0:01:16]} f5 {[%emt 0:01:07]} 14. Ng1 {[%emt 0:01:28]} Nd4 {[%emt 0:00:50]} 15. e3 {[%emt 0:00:52]} Nxb3 {[%emt 0:00:14]} 16. Qd1 {[%emt 0:01:30]} Nxa1 {[%emt 0:00:11]} 17. Qxa1 {[%emt 0:00:06]} c6 {[%emt 0:00:10]} 18. Qa2 {[%emt 0:00:59]} Be6 {[%emt 0:00:55]} 19. Qb1 {[%emt 0:00:52]} Nf6 {[%emt 0:00:46]} 20. Nge2 {[%emt 0:01:32]} Bf7 {[%emt 0:01:01]} 21. Rc1 {[%emt 0:05:57]} d5 {[%emt 0:01:51]} 22. cxd5 {[%emt 0:01:02]} Nxd5 {[%emt 0:00:09]} 23. Rc2 {[%emt 0:02:20]} Nb4 {[%emt 0:01:38]} 24. Rb2 {[%emt 0:00:29]} Nxd3 {[%emt 0:00:41]} 25. Rxb7 {[%emt 0:02:02]} Rxb7 {[%emt 0:00:12]} 26. Qxb7 {[%emt 0:00:12]} e4 {[%emt 0:00:08]} 27. Qxc6 {[%emt 0:02:15]} Nxf2 {[%emt 0:00:29]} 28. Nd4 {[%emt 0:02:01]} Bf6 {[%emt 0:02:34]} 29. Qc5 {[%emt 0:01:57]} Bxd4 {[%emt 0:00:19]} 30. exd4 {[%emt 0:00:55]} Qd7 {[%emt 0:00:20]} 31. Be3 {[%emt 0:01:49]} Nd3 {[%emt 0:00:21]} 32. Qa5 {[%emt 0:00:34]} Ne1 {[%emt 0:01:19]} 33. d5 {[%emt 0:00:23]} Nxg2 {[%emt 0:00:36]} 34. Kxg2 {[%emt 0:00:18]} Ra8 {[%emt 0:06:59]} 35. Kf2 {[%emt 0:01:25]} a6 {[%emt 0:04:33]} 36. Bf4 {[%emt 0:01:18]} Qa7+ {[%emt 0:01:03]} 37. Be3 {[%emt 0:00:36]} Qb8 {[%emt 0:01:45]} 38. Qb6 {[%emt 0:02:19]} Qxb6 {[%emt 0:01:55]} 39. Bxb6 {[%emt 0:00:09]} Rc8 {[%emt 0:00:02]} 40. Bd4 {[%emt 0:00:51]} Rxc3 {[%emt 0:00:49]} 41. Bxc3 {[%emt 0:00:25]} Bxd5 {[%emt 0:00:06]} 42. a5 {[%emt 0:00:43]} Kf7 {[%emt 0:00:10]} 43. Ke3 {[%emt 0:00:27]} g5 {[%emt 0:01:29]} 44. Be1 {[%emt 0:01:17]} Ke6 {[%emt 0:01:57]} 45. h4 {[%emt 0:00:56]} Bc6 {[%emt 0:00:53]} 46. Bc3 {[%emt 0:01:14]} Kf7 {[%emt 0:01:22]} 47. Be1 {[%emt 0:00:28]} Kg6 {[%emt 0:00:14]} 48. Bf2 {[%emt 0:01:12]} Kh5 {[%emt 0:00:07]} 49. Be1 {[%emt 0:03:13]} Kg4 {[%emt 0:00:08]} 50. hxg5 {[%emt 0:03:04]} hxg5 {[%emt 0:00:10]} 51. Kf2 {[%emt 0:00:44]} f4 {[%emt 0:01:42]} 52. gxf4 {[%emt 0:00:43]} Kxf4 {[%emt 0:00:15]} 53. Bd2+ {[%emt 0:00:45]} Kg4 {[%emt 0:00:36]} 54. Be3 {[%emt 0:01:04]} Kh4 {[%emt 0:00:23]} 55. Kg2 {[%emt 0:01:06]} g4 {[%emt 0:01:19]} 56. Bf2+ {[%emt 0:01:39]} Kg5 {[%emt 0:00:52]} 57. Kg3 {[%emt 0:01:35]} Kf5 {[%emt 0:00:06]} 58. Be3 {[%emt 0:01:56]} Bb5 {[%emt 0:00:11]} 59. Bd2 {[%emt 0:00:57]} Be2 {[%emt 0:00:11]} 60. Be3 {[%emt 0:02:31]} Bf3 {[%emt 0:00:21]} 61. Bd4 {[%emt 0:01:21]} Ke6 {[%emt 0:00:31]} 62. Kf4 {[%emt 0:01:07]} Kd5 {[%emt 0:00:58]} 63. Be3 {[%emt 0:00:47]} Kc4 {[%emt 0:00:26]} 64. Bb6 {[%emt 0:01:31]} Kb4 {[%emt 0:00:59]} 65. Bc7 {[%emt 0:00:39]} Kc3 {[%emt 0:00:06]} 66. Bb6 {[%emt 0:03:09]} Kd3 {[%emt 0:00:12]} 67. Be3 {[%emt 0:00:55]} Ke2 {[%emt 0:00:12]} 68. Bb6 {[%emt 0:00:56]} Kf1 {[%emt 0:00:15]} 69. Kg3 {[%emt 0:00:27]} Ke1 {[%emt 0:00:20]} 70. Kf4 {[%emt 0:01:05]} Ke2 {[%emt 0:00:10]} 71. Ba7 {[%emt 0:00:27]} e3 {[%emt 0:00:11]} 72. Bxe3 {[%emt 0:00:28]} g3 {[%emt 0:00:04]} 73. Bb6 {[%emt 0:00:44]} g2 {[%emt 0:00:17]} 74. Kg3 {[%emt 0:00:19]} Kf1 {[%emt 0:00:13]} 75. Kh2 {[%emt 0:00:13]} Bc6 {[%emt 0:00:10]} 76. Bg1 {[%emt 0:00:29]} 1/2-1/2

[Event "ONJK-B 2019"]
[Site "Borne"]
[Date "2019.08.06"]
[Round "2.14"]
[White "Tiggelman, Laura"]
[Black "Li-Behn, Tobias"]
[Result "1-0"]
[ECO "C54"]
[WhiteElo "1436"]
[BlackElo "1264"]
[Annotator "NA"]
[PlyCount "151"]
[EventDate "2019.08.05"]
[EventType "swiss"]
[EventCountry "NED"]
[SourceTitle "playchess.com"]
[Source "ChessBase"]
[SourceQuality "1"]
[TimeControl "5400+30"]

1. e4 {[%emt 0:00:00]} e5 {[%emt 0:00:00]} 2. Nf3 {[%emt 0:00:00]} Nc6 {[%emt 0:00:00]} 3. Bc4 {[%emt 0:00:00]} Bc5 {[%emt 0:00:00]} 4. c3 {[%emt 0:00:00]} Nf6 {[%emt 0:01:45]} 5. d4 {[%emt 0:00:08]} exd4 {[%emt 0:01:12]} 6. e5 {[%emt 0:00:10]} d5 {[%emt 0:08:11]} 7. Bb5 {[%emt 0:00:14]} Ne4 {[%emt 0:02:09]} 8. cxd4 {[%emt 0:00:27]} Bb4+ {[%emt 0:01:02]} 9. Bd2 {[%emt 0:00:14]} Nxd2 {[%emt 0:00:39]} 10. Nbxd2 {[%emt 0:00:07]} Bd7 {[%emt 0:00:39]} 11. Bd3 {[%emt 0:04:47]} O-O {[%emt 0:02:30]} 12. O-O {[%emt 0:00:21]} Re8 {[%emt 0:02:23]} 13. Qc2 {[%emt 0:04:59]} h6 {[%emt 0:02:15]} 14. Nb3 {[%emt 0:09:43]} a6 {[%emt 0:05:15]} 15. Rac1 {[%emt 0:04:01]} Bg4 {[%emt 0:06:34]} 16. Be2 {[%emt 0:01:00]} Qd7 {[%emt 0:01:14]} 17. a3 {[%emt 0:00:47]} Be7 {[%emt 0:03:27]} 18. Nc5 {[%emt 0:01:49]} Qc8 {[%emt 0:03:03]} 19. Nxa6 {[%emt 0:05:18]} Bxf3 {[%emt 0:11:35]} 20. Bxf3 {[%emt 0:01:28]} Rxa6 {[%emt 0:02:29]} 21. Bxd5 {[%emt 0:02:28]} Nxd4 {[%emt 0:01:59]} 22. Qe4 {[%emt 0:01:43]} Nc6 {[%emt 0:04:08]} 23. e6 {[%emt 0:12:01]} f6 {[%emt 0:11:11]} 24. Bc4 {[%emt 0:01:27]} Ra4 {[%emt 0:02:56]} 25. b3 {[%emt 0:00:37]} Rxc4 {[%emt 0:00:53]} 26. Qxc4 {[%emt 0:06:23]} Bxa3 {[%emt 0:01:09]} 27. Rce1 {[%emt 0:00:30]} Bd6 {[%emt 0:02:34]} 28. f4 {[%emt 0:03:29]} Kh7 {[%emt 0:04:31]} 29. f5 {[%emt 0:00:44]} Ne5 {[%emt 0:00:03]} 30. Qh4 {[%emt 0:07:38]} b5 {[%emt 0:02:15]} 31. Kh1 {[%emt 0:09:51]} b4 {[%emt 0:00:42]} 32. Qh5 {[%emt 0:03:29]} Rf8 {[%emt 0:02:46]} 33. Rd1 {[%emt 0:08:17]} Qb7 {[%emt 0:01:05]} 34. Rfe1 {[%emt 0:02:43]} Qb5 {[%emt 0:02:47]} 35. Re3 {[%emt 0:02:20]} c5 {[%emt 0:02:46]} 36. h3 {[%emt 0:04:44]} Be7 {[%emt 0:00:59]} 37. Rg3 {[%emt 0:02:18]} Rg8 {[%emt 0:01:12]} 38. Kh2 {[%emt 0:01:14]} c4 {[%emt 0:01:11]} 39. bxc4 {[%emt 0:00:37]} Qxc4 {[%emt 0:00:12]} 40. Rb1 {[%emt 0:00:38]} Bd6 {[%emt 0:01:40]} 41. Kh1 {[%emt 0:00:34]} Qe4 {[%emt 0:01:17]} 42. Rd1 {[%emt 0:00:20]} Be7 {[%emt 0:00:59]} 43. Kh2 {[%emt 0:00:22]} Qc2 {[%emt 0:00:25]} 44. Rf1 {[%emt 0:01:21]} b3 {[%emt 0:00:14]} 45. Qd1 {[%emt 0:00:09]} Rc8 {[%emt 0:01:41]} 46. Re3 {[%emt 0:00:41]} b2 {[%emt 0:00:45]} 47. Qb1 {[%emt 0:00:16]} Nd3 {[%emt 0:01:33]} 48. Ref3 {[%emt 0:00:50]} Qxb1 {[%emt 0:00:29]} 49. Rxb1 {[%emt 0:00:09]} Rc1 {[%emt 0:00:02]} 50. Rf1 {[%emt 0:00:24]} Bd6+ {[%emt 0:00:28]} 51. Kg1 {[%emt 0:00:13]} Bc5+ {[%emt 0:00:25]} 52. Kh2 {[%emt 0:00:05]} Ba3 {[%emt 0:00:44]} 53. Kg3 {[%emt 0:00:18]} Kg8 {[%emt 0:00:02]} 54. Kf3 {[%emt 0:00:10]} Ne5+ {[%emt 0:00:55]} 55. Ke2 {[%emt 0:00:18]} Rc2+ {[%emt 0:00:13]} 56. Ke3 {[%emt 0:00:44]} Rxg2 {[%emt 0:00:18]} 57. Kd4 {[%emt 0:01:17]} Rd2+ {[%emt 0:00:46]} 58. Kc3 {[%emt 0:00:19]} Rd3+ {[%emt 0:00:01]} 59. Kc2 {[%emt 0:00:15]} Rxh3 {[%emt 0:00:13]} 60. Rfd1 {[%emt 0:00:23]} Rh2+ {[%emt 0:00:23]} 61. Kc3 {[%emt 0:00:15]} Rg2 {[%emt 0:00:52]} 62. Rd8+ {[%emt 0:00:19]} Kh7 {[%emt 0:00:15]} 63. Ra8 {[%emt 0:00:48]} Rg3+ {[%emt 0:00:09]} 64. Kc2 {[%emt 0:00:14]} Nc4 {[%emt 0:01:12]} 65. Ra7 {[%emt 0:00:45]} Ne3+ {[%emt 0:00:13]} 66. Kd2 {[%emt 0:00:23]} Nxf5 {[%emt 0:00:04]} 67. Re1 {[%emt 0:01:28]} h5 {[%emt 0:00:28]} 68. Rh1 {[%emt 0:00:20]} h4 {[%emt 0:00:09]} 69. Rc7 {[%emt 0:01:26]} Bd6 {[%emt 0:01:48]} 70. Rb7 {[%emt 0:00:20]} Be5 {[%emt 0:00:51]} 71. Rxh4+ {[%emt 0:00:30]} Kg6 {[%emt 0:00:49]} 72. Rh1 {[%emt 0:00:28]} Nd6 {[%emt 0:00:30]} 73. e7 {[%emt 0:00:44]} Rg2+ {[%emt 0:00:50]} 74. Ke3 {[%emt 0:00:22]} Kf7 {[%emt 0:00:21]} 75. Rh8 {[%emt 0:00:30]} Rg1 {[%emt 0:01:05]} 76. e8=Q# {[%emt 0:00:16]} 1-0